bitfinex/quotes_BTCUSD_20251212
["timestamp","ask_amount","ask_price","bid_price","bid_amount"]
[1765566325525,0.23264044,90269.0,90261.0,0.01107898]
[1765566325891,0.23261433,90279.0,90275.0,0.01107726]
[1765566326113,0.01107665,90280.0,90276.0,0.01107714]
[1765566326257,0.01107714,90276.0,90272.0,0.23347164]
[1765566326458,0.01107628,90283.0,90272.0,0.23347164]
[1765566326459,0.00238744,90280.0,90272.0,0.01192]
[1765566326647,0.01246356,90280.0,90276.0,0.01107714]
[1765566326849,0.23399882,90280.0,90276.0,0.01107714]
[1765566327187,0.00038692,90280.0,90279.0,0.01589]
[1765566327393,0.23262037,90276.0,90272.0,0.01192]
[1765566327737,0.22154881,90274.0,90272.0,0.01192]
[1765566327935,0.22154881,90274.0,90265.0,0.22156803]
[1765566327936,0.23265118,90264.0,90261.0,0.0176]
[1765566328172,0.22157718,90262.0,90261.0,0.0176]
[1765566328546,0.0110791,90260.0,90257.0,0.01107947]
[1765566328795,0.01107898,90261.0,90258.0,0.01107935]
[1765566328989,0.23265862,90261.0,90260.0,0.043188]
[1765566329189,0.0110791,90260.0,90257.0,0.01107947]
[1765566329355,0.01107885,90262.0,90258.0,0.01107935]
[1765566329560,0.23265885,90261.0,90256.0,0.27585933]
[1765566329771,0.01107898,90261.0,90257.0,0.01207947]
[1765566329962,0.01107898,90261.0,90258.0,0.01107935]
[1765566330784,0.01107885,90262.0,90258.0,0.01107935]
[1765566331521,0.01107885,90262.0,90258.0,0.01207935]
[1765566331700,0.01107873,90263.0,90259.0,0.01107922]
[1765566332042,0.01107885,90262.0,90259.0,0.01107922]
[1765566332590,0.22158455,90259.0,90258.0,0.001]
[1765566332946,0.23265878,90261.0,90258.0,0.001]
[1765566333102,0.23265878,90261.0,90257.0,0.01107947]
[1765566333287,0.0110791,90260.0,90257.0,0.01107947]
[1765566333479,0.01107873,90263.0,90259.0,0.01107922]
[1765566333667,0.01107873,90263.0,90259.0,0.23266361]
[1765566333909,0.01107885,90262.0,90259.0,0.01107922]
[1765566334089,0.01107885,90262.0,90258.0,0.03486935]
[1765566334522,0.01107885,90262.0,90259.0,0.01107922]
[1765566334681,0.01107885,90262.0,90258.0,0.03486935]
[1765566335106,0.01107885,90262.0,90259.0,0.01107922]
[1765566335309,0.01107873,90263.0,90259.0,0.01107922]
[1765566335489,0.01107861,90264.0,90261.0,0.01107898]
[1765566336198,0.00238744,90270.0,90268.0,0.043188]
[1765566336400,0.00138745,90270.0,90268.0,0.043188]
[1765566336524,0.22155509,90271.0,90269.0,0.03968]
[1765566337252,0.22155509,90271.0,90269.0,0.01589]
[1765566337633,0.22155509,90271.0,90255.0,0.01107971]
[1765566337634,0.23267885,90254.0,90250.0,0.01108033]
[1765566337835,0.23268152,90253.0,90251.0,0.0176]
[1765566338087,0.01107996,90253.0,90251.0,0.0176]
[1765566338387,0.23268161,90253.0,90251.0,0.0176]
[1765566338888,0.0110807,90247.0,90243.0,0.01108119]
[1765566339108,0.00238744,90250.0,90247.0,0.0110807]
[1765566339290,0.00099999,90250.0,90248.0,0.22161155]
[1765566339510,0.00099999,90250.0,90249.0,0.03968]
[1765566340681,0.01107922,90259.0,90256.0,0.01107959]
[1765566340853,0.22158209,90260.0,90258.0,0.070998]
[1765566341052,0.22158209,90260.0,90259.0,0.01589]
[1765566341251,0.01107849,90265.0,90259.0,0.03968]
[1765566341540,0.22157964,90261.0,90260.0,0.01589]
[1765566341950,0.23265862,90261.0,90258.0,0.043188]
[1765566342147,0.22158455,90259.0,90258.0,0.043188]
[1765566343284,0.22160173,90252.0,90251.0,0.04139]
[1765566343505,0.22160173,90252.0,90251.0,0.084578]
[1765566343685,0.22160173,90252.0,90251.0,0.100468]
[1765566344443,0.22160173,90252.0,90251.0,0.05728]
[1765566344615,0.01108168,90239.0,90238.0,0.043188]
[1765566345171,0.23270276,90244.0,90241.0,0.01108143]
[1765566345378,0.22162629,90242.0,90239.0,0.01108168]
[1765566345879,0.01108143,90241.0,90240.0,0.02379]
[1765566346100,0.01108143,90241.0,90240.0,0.066978]
[1765566346654,0.01108168,90239.0,90238.0,0.043188]
[1765566346858,0.22163611,90238.0,90236.0,0.01192]
[1765566347379,0.01108143,90241.0,90237.0,0.03968]
[1765566347576,0.22162137,90245.0,90238.0,0.23271791]
[1765566347776,0.22162137,90245.0,90240.0,0.043188]
[1765566348014,0.22162137,90245.0,90241.0,0.01108143]
[1765566348311,0.01108082,90246.0,90241.0,0.01108143]
[1765566348521,0.01108082,90246.0,90243.0,0.01108119]
[1765566348711,0.22399639,90250.0,90243.0,0.01108119]
[1765566348712,0.01108033,90250.0,90245.0,0.01589]
[1765566348939,0.01108033,90250.0,90245.0,0.02697094]
[1765566349083,0.0110807,90247.0,90240.0,0.043188]
[1765566349282,0.01108119,90243.0,90240.0,0.05426956]
[1765566349635,0.01108106,90244.0,90240.0,0.05426956]
[1765566350389,0.01108119,90243.0,90240.0,0.043188]
[1765566350589,0.01108119,90243.0,90236.0,0.055108]
[1765566350590,0.22163857,90237.0,90236.0,0.055108]
[1765566350912,0.01108229,90234.0,90230.0,0.043188]
[1765566351115,0.2216507,90233.0,90230.0,0.043188]
[1765566351316,0.23272049,90237.0,90233.0,0.01595]
[1765566351517,0.01108205,90236.0,90233.0,0.01595]
[1765566351720,0.01108205,90236.0,90233.0,0.04014]
[1765566352443,0.0110818,90238.0,90237.0,0.043188]
[1765566352618,0.23271791,90238.0,90237.0,0.043188]
[1765566353192,0.23271791,90238.0,90237.0,0.083328]
[1765566353429,0.23271791,90238.0,90237.0,0.043188]
[1765566355617,0.01108143,90241.0,90237.0,0.059138]
[1765566355820,0.0110807,90247.0,90242.0,0.01108131]
[1765566356044,0.0110807,90247.0,90246.0,0.043188]
[1765566356755,0.01108094,90245.0,90242.0,0.06535062]
[1765566357160,0.22162138,90244.0,90242.0,0.043188]
[1765566358758,0.22162138,90244.0,90243.0,0.01595]
[1765566359072,0.23269769,90247.0,90246.0,0.043188]
[1765566359391,0.01108168,90239.0,90234.0,0.23272813]
[1765566359534,0.01108192,90237.0,90234.0,0.01108229]
[1765566359733,0.01108217,90235.0,90231.0,0.05287266]
[1765566359948,0.01108229,90234.0,90231.0,0.05287266]
[1765566360163,0.01108192,90237.0,90234.0,0.01595]
[1765566360570,0.01108192,90237.0,90236.0,0.01595]
[1765566360571,0.23272283,90237.0,90236.0,0.01595]
[1765566361043,0.23272283,90237.0,90231.0,0.02868266]
[1765566361044,0.22165085,90232.0,90231.0,0.0176]
[1765566361246,0.22165085,90232.0,90217.0,0.01108438]
[1765566361247,0.01108475,90214.0,90205.0,0.02419]
[1765566361444,0.00138745,90220.0,90205.0,0.00011617]
[1765566361445,0.23280047,90206.0,90205.0,0.00011617]
[1765566362564,0.23380047,90206.0,90205.0,0.00011617]
[1765566362986,0.23280047,90206.0,90205.0,0.00011617]
[1765566363991,0.23480047,90206.0,90205.0,0.00011617]
[1765566364511,0.23380047,90206.0,90205.0,0.00011617]
[1765566364710,0.23280047,90206.0,90205.0,0.00011617]
[1765566364887,0.23625722,90206.0,90205.0,0.00011617]
[1765566365104,0.23925722,90206.0,90205.0,0.00011617]
[1765566367530,1.57315722,90206.0,90205.0,0.00011617]
[1765566367734,0.22175161,90191.0,90190.0,0.0002]
[1765566367938,0.24084836,90191.0,90190.0,0.00031622]
[1765566369576,0.24484836,90191.0,90190.0,0.00031622]
[1765566369750,0.24184836,90191.0,90190.0,0.00031622]
[1765566369954,0.24084836,90191.0,90190.0,0.00031622]
[1765566370150,0.24484836,90191.0,90190.0,0.00031622]
[1765566370338,0.24784836,90191.0,90190.0,0.00031622]
[1765566370540,1.60421296,90191.0,90190.0,0.00031622]
[1765566370723,0.2218008,90171.0,90170.0,0.0002]
[1765566372927,0.2228008,90171.0,90170.0,0.0002]
[1765566373698,0.2218008,90171.0,90170.0,0.0002]
[1765566374078,0.2228008,90171.0,90170.0,0.0002]
[1765566374281,0.00138745,90190.0,90170.0,0.06924]
[1765566374621,0.01108684,90197.0,90193.0,0.01108733]
[1765566374899,0.00011591,90197.0,90195.0,0.22174178]
[1765566375070,0.00011591,90197.0,90193.0,0.01108733]
[1765566375245,0.00011591,90197.0,90193.0,0.02419]
[1765566375246,0.22173932,90196.0,90193.0,0.02419]
[1765566375442,0.01120275,90197.0,90193.0,0.02419]
[1765566375443,0.00011591,90197.0,90196.0,0.01126]
[1765566375643,0.00011591,90197.0,90196.0,0.0514]
[1765566376266,0.00011591,90197.0,90196.0,0.27313932]
[1765566376468,0.00011591,90197.0,90196.0,0.31632732]
[1765566376871,0.00011591,90197.0,90196.0,0.31732732]
[1765566377475,0.00011591,90197.0,90196.0,0.071398]
[1765566377682,0.00111591,90197.0,90196.0,0.071398]
[1765566377856,0.00011591,90197.0,90196.0,0.071398]
[1765566378085,0.22185277,90197.0,90196.0,0.071398]
[1765566378272,0.22185277,90197.0,90196.0,0.073398]
[1765566378473,0.22185277,90197.0,90196.0,0.071398]
[1765566378667,0.00011591,90197.0,90196.0,0.071398]
[1765566379295,0.22330952,90197.0,90196.0,0.001]
[1765566379910,0.24094952,90197.0,90196.0,0.001]
[1765566380125,0.22330952,90197.0,90196.0,0.001]
[1765566380542,0.01108807,90187.0,90184.0,0.06311749]
[1765566380678,0.01108807,90187.0,90184.0,0.043188]
[1765566381105,0.01108708,90195.0,90191.0,0.01108758]
[1765566381391,0.01108745,90192.0,90188.0,0.01108794]
[1765566381596,0.01108782,90189.0,90179.0,0.043188]
[1765566381834,0.22177132,90183.0,90179.0,0.05427705]
[1765566382065,0.01108868,90182.0,90179.0,0.05427705]
[1765566382769,0.01108844,90184.0,90179.0,0.05427705]
[1765566382917,0.2217623,90187.0,90169.0,0.01109028]
[1765566382918,0.2217916,90175.0,90169.0,0.01109028]
[1765566383122,0.2217916,90175.0,90167.0,0.01109053]
[1765566383123,0.2218008,90171.0,90167.0,0.01109053]
[1765566383303,0.01108979,90173.0,90167.0,0.01109053]
[1765566383304,0.23288583,90173.0,90170.0,0.0002]
[1765566383504,0.2218008,90171.0,90170.0,0.0002]
[1765566385334,0.2228008,90171.0,90170.0,0.0002]
[1765566385744,0.2228008,90171.0,90170.0,0.0022]
[1765566385953,0.001,90171.0,90170.0,0.0022]
[1765566386114,0.001,90171.0,90170.0,0.0002]
[1765566387313,0.22180061,90172.0,90170.0,0.0002]
[1765566387832,0.0110893,90177.0,90173.0,0.043188]
[1765566387966,0.0110893,90177.0,90173.0,0.05427779]
[1765566387967,0.01108942,90176.0,90173.0,0.05427779]
[1765566388168,0.01108942,90176.0,90174.0,0.04546934]
[1765566388482,0.01108942,90176.0,90175.0,0.03943]
[1765566388652,0.01108942,90176.0,90175.0,0.05186]
[1765566388860,0.22177031,90184.0,90179.0,0.01108905]
[1765566389093,0.01108819,90186.0,90183.0,0.043188]
[1765566389273,0.22176882,90184.0,90183.0,0.043188]
[1765566389477,0.23287356,90178.0,90177.0,0.043188]
[1765566389809,0.01108881,90181.0,90178.0,0.043188]
[1765566390010,0.22177866,90180.0,90178.0,0.043188]
[1765566390418,0.22177866,90180.0,90172.0,0.25052584]
[1765566390419,0.01108905,90179.0,90176.0,0.01108942]
[1765566390712,0.0110893,90177.0,90173.0,0.01108979]
[1765566391419,0.22179588,90173.0,90172.0,0.01764]
[1765566391970,0.23288282,90175.0,90172.0,0.01764]
[1765566392171,0.01108954,90175.0,90172.0,0.04093]
[1765566392390,0.01108868,90182.0,90177.0,0.0110893]
[1765566392605,0.00099999,90180.0,90177.0,0.0110893]
[1765566393374,0.22178717,90177.0,90172.0,0.05201991]
[1765566393576,0.01108954,90175.0,90172.0,0.04093]
[1765566393731,0.23287647,90177.0,90172.0,0.02872991]
[1765566393929,0.0110893,90177.0,90176.0,0.01614]
[1765566394104,0.0110893,90177.0,90170.0,0.0002]
[1765566394105,0.22180059,90172.0,90170.0,0.0002]
[1765566394307,0.01028504,90171.0,90170.0,0.0002]
[1765566394619,0.02792504,90171.0,90170.0,0.0002]
[1765566395598,0.01228504,90171.0,90170.0,0.0002]
[1765566395848,0.2238008,90171.0,90170.0,0.0002]
[1765566396151,0.002,90171.0,90170.0,0.0002]
[1765566396311,0.2238008,90171.0,90170.0,0.0002]
[1765566396512,0.2258008,90171.0,90170.0,0.0002]
[1765566396719,0.004,90171.0,90170.0,0.0002]
[1765566397033,0.22180046,90172.0,90170.0,0.0002]
[1765566397238,0.002,90171.0,90170.0,0.0002]
[1765566397563,0.001,90171.0,90170.0,0.0002]
[1765566398318,0.22180073,90172.0,90170.0,0.0002]
[1765566398716,0.22280073,90172.0,90170.0,0.0002]
[1765566398976,0.001,90172.0,90170.0,0.0002]
[1765566399194,0.22280051,90172.0,90170.0,0.0002]
[1765566399984,0.22280051,90172.0,90171.0,0.01614]
[1765566399985,0.001,90172.0,90171.0,0.01614]
[1765566400358,0.001,90172.0,90171.0,0.2612308]
[1765566400693,0.001,90172.0,90171.0,0.3044188]
[1765566401510,0.01108917,90178.0,90174.0,0.23288268]
[1765566401914,0.23287477,90178.0,90174.0,0.01108967]
[1765566402075,0.23285921,90184.0,90179.0,0.01108905]
[1765566402277,0.01108881,90181.0,90178.0,0.01614]
[1765566402504,0.01108881,90181.0,90178.0,0.05051917]
[1765566402701,0.01108881,90181.0,90180.0,0.059328]
[1765566403286,0.01108881,90181.0,90180.0,0.043188]
[1765566404881,0.22179342,90174.0,90173.0,0.01764]
[1765566405100,0.22179342,90174.0,90170.0,0.0002]
[1765566405101,0.23288567,90173.0,90170.0,0.0002]
[1765566405313,0.2218008,90171.0,90170.0,0.0002]
[1765566406063,0.01108954,90175.0,90170.0,0.01634]
[1765566406393,0.0110893,90177.0,90170.0,0.01634]
[1765566406394,0.0110893,90177.0,90174.0,0.01108967]
[1765566406543,0.0110893,90177.0,90173.0,0.23288476]
[1765566406738,0.01108967,90174.0,90171.0,0.043188]
[1765566407056,0.2218008,90171.0,90170.0,0.0002]
[1765566407252,0.23288599,90173.0,90170.0,0.0012]
[1765566407440,0.01108979,90173.0,90170.0,0.0012]
[1765566407925,0.01108979,90173.0,90170.0,0.0002]
[1765566408378,0.01108954,90175.0,90171.0,0.2218008]
[1765566409110,0.01108942,90176.0,90172.0,0.01108991]
[1765566409263,0.01108942,90176.0,90173.0,0.01108979]
[1765566409464,0.0110893,90177.0,90173.0,0.01108979]
[1765566409662,0.0110893,90177.0,90172.0,0.01108991]
[1765566409663,0.01108954,90175.0,90172.0,0.01108991]
[1765566410433,0.01108905,90179.0,90172.0,0.01108991]
[1765566410434,0.22177866,90180.0,90177.0,0.0110893]
[1765566410654,0.01108967,90174.0,90171.0,0.01109004]
[1765566410849,0.22179926,90172.0,90170.0,0.0002]
[1765566411307,0.2218008,90171.0,90170.0,0.0002]
[1765566411525,0.23288567,90173.0,90170.0,0.0002]
[1765566411726,0.23288567,90173.0,90172.0,0.01623]
[1765566412094,0.23288567,90173.0,90172.0,0.04091]
[1765566412623,0.23288567,90173.0,90172.0,0.01623]
[1765566414507,0.23288567,90173.0,90170.0,0.0012]
[1765566414508,0.2218008,90171.0,90170.0,0.0012]
[1765566414705,0.2218008,90171.0,90170.0,0.0002]
[1765566414928,0.20905009,90171.0,90170.0,0.0002]
[1765566415106,0.26256149,90171.0,90170.0,0.0002]
[1765566416410,0.26356149,90171.0,90170.0,0.0002]
[1765566416829,0.26256149,90171.0,90170.0,0.0002]
[1765566417622,0.26456149,90171.0,90170.0,0.0002]
[1765566418232,0.26656149,90171.0,90170.0,0.0002]
[1765566418429,0.23069009,90171.0,90170.0,0.0002]
[1765566419252,0.27389009,90171.0,90170.0,0.0002]
[1765566421885,0.21305009,90171.0,90170.0,0.0002]
[1765566422086,0.23743371,90171.0,90170.0,0.0002]
[1765566422286,0.27389009,90171.0,90170.0,0.0002]
[1765566423969,0.23069009,90171.0,90170.0,0.0002]
[1765566425956,0.21305009,90171.0,90170.0,0.0002]
[1765566426158,0.21979371,90171.0,90170.0,0.0002]
[1765566426594,0.21305009,90171.0,90170.0,0.0002]
[1765566426800,0.21105009,90171.0,90170.0,0.0002]
[1765566427160,0.21005009,90171.0,90170.0,0.0002]
[1765566428026,0.21105009,90171.0,90170.0,0.0002]
[1765566428785,0.002,90171.0,90170.0,0.01672]
[1765566428988,0.002,90171.0,90170.0,0.083338]
[1765566429750,0.32034785,90203.0,90192.0,0.22174684]
[1765566429751,0.01108672,90198.0,90192.0,0.22174684]
[1765566429922,0.01120275,90197.0,90194.0,0.043188]
[1765566430163,0.00011591,90197.0,90196.0,0.01652]
[1765566430482,0.23294196,90197.0,90194.0,0.043188]
[1765566430694,0.23294196,90197.0,90185.0,0.043188]
[1765566430695,0.23284952,90187.0,90185.0,0.043188]
[1765566430889,0.23284952,90187.0,90172.0,0.30178991]
[1765566430890,0.22179875,90172.0,90165.0,0.03452077]
[1765566431095,0.22179875,90172.0,90170.0,0.0002]
[1765566431342,0.00674362,90171.0,90170.0,0.0002]
[1765566432284,0.00674362,90171.0,90170.0,0.0022]
[1765566433118,0.01108979,90173.0,90170.0,0.0052]
[1765566433408,0.01108979,90173.0,90170.0,0.0022]
[1765566433610,0.22179834,90172.0,90170.0,0.0022]
[1765566433816,0.001,90171.0,90170.0,0.0022]
[1765566434017,0.23288601,90173.0,90170.0,0.0002]
[1765566434372,0.2228008,90171.0,90170.0,0.0002]
[1765566434800,0.2218008,90171.0,90170.0,0.0002]
[1765566435006,0.2218008,90171.0,90170.0,0.0012]
[1765566436780,0.2218008,90171.0,90170.0,0.0002]
[1765566437211,0.2228008,90171.0,90170.0,0.0002]
[1765566437395,0.2228008,90171.0,90170.0,0.04015]
[1765566437595,0.002,90171.0,90170.0,0.04015]
[1765566437796,0.001,90171.0,90170.0,0.01672]
[1765566438020,0.22180057,90172.0,90170.0,0.0002]
[1765566438267,0.001,90171.0,90170.0,0.0002]
[1765566438951,0.22180057,90172.0,90170.0,0.0012]
[1765566439141,0.22280057,90172.0,90170.0,0.0012]
[1765566440121,0.22280057,90172.0,90170.0,0.0002]
[1765566440723,0.22180057,90172.0,90170.0,0.0002]
[1765566441241,0.001,90171.0,90170.0,0.0002]
[1765566441452,0.22180057,90172.0,90170.0,0.0002]
[1765566441910,0.22280057,90172.0,90170.0,0.0002]
[1765566442686,0.00674362,90171.0,90170.0,0.0002]
[1765566443408,0.22280057,90172.0,90170.0,0.0002]
[1765566444116,0.22180057,90172.0,90170.0,0.0002]
[1765566444636,0.001,90171.0,90170.0,0.0002]
[1765566444966,0.22180057,90172.0,90170.0,0.0002]
[1765566445481,0.22280057,90172.0,90170.0,0.0002]
[1765566448085,0.00674362,90171.0,90170.0,0.0002]
[1765566448288,0.22280057,90172.0,90170.0,0.0002]
[1765566448549,0.001,90172.0,90170.0,0.0002]
[1765566448674,0.001,90172.0,90171.0,0.03861]
[1765566448875,0.22179755,90173.0,90171.0,0.03861]
[1765566449301,0.01108967,90174.0,90172.0,0.01519]
[1765566449707,0.23288382,90174.0,90172.0,0.01519]
[1765566450112,0.23287834,90176.0,90173.0,0.01519]
[1765566450315,0.001,90220.0,90172.0,0.02342]
[1765566450316,0.0237721,90186.0,90175.0,0.01519]
[1765566450528,0.22176322,90187.0,90182.0,0.22177156]
[1765566450747,0.01921266,90197.0,90192.0,0.01108745]
[1765566450748,0.01108696,90196.0,90192.0,0.01108745]
[1765566451014,0.22175206,90191.0,90189.0,0.01519]
[1765566451153,0.22175899,90188.0,90185.0,0.043188]
[1765566451488,0.23287534,90177.0,90176.0,0.043188]
[1765566451930,0.22179588,90173.0,90172.0,0.060828]
[1765566452375,0.22179588,90173.0,90170.0,0.0002]
[1765566452376,0.2218008,90171.0,90170.0,0.0002]
[1765566453175,0.22325755,90171.0,90170.0,0.0002]
[1765566454194,0.22325755,90171.0,90170.0,0.0012]
[1765566454369,0.22325755,90171.0,90170.0,0.0002]
[1765566455836,0.29740879,90171.0,90170.0,0.0002]
[1765566455973,1.59842439,90171.0,90170.0,0.0002]
[1765566456174,1.66538873,90171.0,90170.0,0.0002]
[1765566456402,1.62088534,90171.0,90170.0,0.0002]
[1765566456644,1.62088534,90171.0,90164.0,0.00494729]
[1765566456645,1.60573395,90165.0,90164.0,0.00494729]
[1765566456851,1.60573395,90165.0,90150.0,0.0002]
[1765566456852,0.55575,90151.0,90150.0,0.0002]
[1765566457974,0.55575,90151.0,90150.0,0.00058706]
[1765566458155,0.55775,90151.0,90150.0,0.00058706]
[1765566458331,0.51455,90151.0,90150.0,0.00058706]
[1765566458714,0.51755,90151.0,90150.0,0.00058706]
[1765566460126,0.56075,90151.0,90150.0,0.00058706]
[1765566460508,0.51755,90151.0,90150.0,0.00058706]
[1765566460916,0.56075,90151.0,90150.0,0.00058706]
[1765566461515,0.51755,90151.0,90150.0,0.00058706]
[1765566462361,0.56075,90151.0,90150.0,0.00058706]
[1765566462553,0.51755,90151.0,90150.0,0.00100575]
[1765566462708,0.56075,90151.0,90150.0,0.00100575]
[1765566463328,0.51755,90151.0,90150.0,0.00100575]
[1765566463530,0.53519,90151.0,90150.0,0.00100575]
[1765566464332,0.51755,90151.0,90150.0,0.00100575]
[1765566464558,0.56075,90151.0,90150.0,0.00100575]
[1765566465509,0.51755,90151.0,90150.0,0.00100575]
[1765566465660,0.51755,90151.0,90140.0,0.0002]
[1765566465661,0.26507461,90141.0,90140.0,0.0002]
[1765566465856,0.23990096,90141.0,90140.0,0.0002]
[1765566466066,0.28310096,90141.0,90140.0,0.0002]
[1765566466238,0.23990096,90141.0,90140.0,0.0002]
[1765566466844,0.22192878,90119.0,90118.0,0.05]
[1765566468405,0.22192878,90119.0,90118.0,0.051]
[1765566469226,0.22192878,90119.0,90118.0,0.053]
[1765566469404,0.22192878,90119.0,90118.0,0.051]
[1765566469722,0.22192878,90119.0,90118.0,0.05195741]
[1765566469926,0.22292878,90119.0,90118.0,0.05095741]
[1765566470228,0.22392878,90119.0,90118.0,0.05095741]
[1765566470666,0.22538553,90119.0,90118.0,0.05095741]
[1765566470859,0.22392878,90119.0,90118.0,0.05095741]
[1765566471641,0.002,90119.0,90118.0,0.06753741]
[1765566471796,0.002,90119.0,90118.0,0.09068741]
[1765566472609,0.001,90119.0,90118.0,0.06753741]
[1765566472989,0.001,90119.0,90118.0,0.09268741]
[1765566474238,0.01109619,90121.0,90118.0,0.09268741]
[1765566474443,0.01109594,90123.0,90120.0,0.01658]
[1765566474675,0.01109594,90123.0,90122.0,0.01658]
[1765566474676,0.23301487,90123.0,90122.0,0.01658]
[1765566475289,0.23301487,90123.0,90122.0,0.03973]
[1765566475615,0.00238744,90130.0,90122.0,0.26164893]
[1765566475838,0.00238744,90130.0,90121.0,0.01109619]
[1765566475839,0.00099999,90140.0,90133.0,0.22189431]
[1765566476051,0.01109397,90139.0,90134.0,0.03952459]
[1765566476423,0.01109422,90137.0,90134.0,0.05158]
[1765566476685,0.01109422,90137.0,90135.0,0.02315]
[1765566476871,0.22188692,90136.0,90135.0,0.02315]
[1765566477072,0.01109483,90132.0,90127.0,0.22190743]
[1765566477271,0.01109483,90132.0,90128.0,0.055038]
[1765566477477,0.01109508,90130.0,90126.0,0.02873557]
[1765566477737,0.01109496,90131.0,90127.0,0.01109545]
[1765566477960,0.01109496,90131.0,90128.0,0.01109533]
[1765566478177,0.01109483,90132.0,90129.0,0.0110952]
[1765566478379,0.01109459,90134.0,90129.0,0.0110952]
[1765566478596,0.01109483,90132.0,90128.0,0.01109533]
[1765566479199,0.22189923,90131.0,90128.0,0.01109533]
[1765566479428,0.01109545,90127.0,90124.0,0.01764]
[1765566479629,0.22192859,90120.0,90118.0,0.05]
[1765566481788,0.22192855,90120.0,90118.0,0.05]
[1765566483403,0.22192855,90120.0,90119.0,0.03973]
[1765566483965,0.22192855,90120.0,90118.0,0.05]
[1765566485262,0.22192855,90120.0,90119.0,0.00092748]
[1765566487325,0.23302157,90121.0,90119.0,0.04065748]
[1765566487539,0.01109594,90123.0,90120.0,0.01658]
[1765566487778,0.2219118,90126.0,90122.0,0.01658]
[1765566488002,0.01109483,90132.0,90125.0,0.0110957]
[1765566488003,0.01109508,90130.0,90125.0,0.0110957]
[1765566488211,0.2329936,90132.0,90129.0,0.01658]
[1765566488424,0.01109483,90132.0,90131.0,0.01185]
[1765566488638,0.22189253,90134.0,90131.0,0.01185]
[1765566488639,0.01109459,90134.0,90131.0,0.02843]
[1765566488849,0.01109459,90134.0,90133.0,0.01658]
[1765566489264,0.01109459,90134.0,90133.0,0.03973]
[1765566489711,0.22188924,90136.0,90133.0,0.03973]
[1765566489712,0.01109434,90136.0,90133.0,0.03973]
[1765566489910,0.22190506,90129.0,90123.0,0.01109594]
[1765566490117,0.01109533,90128.0,90123.0,0.01109594]
[1765566490332,0.01109545,90127.0,90123.0,0.03424594]
[1765566490547,0.0110952,90129.0,90127.0,0.01658]
[1765566490751,0.01109483,90132.0,90128.0,0.059768]
[1765566490974,0.01109483,90132.0,90124.0,0.04534164]
[1765566490975,0.001,90136.0,90135.0,0.26507738]
[1765566491197,0.001,90136.0,90135.0,0.28165738]
[1765566491385,0.0110936,90142.0,90138.0,0.0110941]
[1765566491590,0.22187708,90140.0,90137.0,0.043188]
[1765566491847,0.00038635,90141.0,90139.0,0.01658]
[1765566492036,0.00038635,90141.0,90140.0,0.059768]
[1765566492242,0.00038635,90141.0,90140.0,0.082918]
[1765566492443,0.00038635,90141.0,90140.0,0.01658]
[1765566492613,0.00038635,90141.0,90140.0,0.03973]
[1765566493018,0.00099999,90150.0,90148.0,0.22185734]
[1765566493232,0.00099999,90160.0,90158.0,0.22183197]
[1765566493884,0.0110909,90164.0,90159.0,0.01109151]
[1765566494094,0.01109102,90163.0,90159.0,0.01658]
[1765566494224,0.01109114,90162.0,90160.0,0.02315]
[1765566494462,0.01109077,90165.0,90161.0,0.03952127]
[1765566494904,0.01108979,90173.0,90168.0,0.22180818]
[1765566495127,0.0110904,90168.0,90164.0,0.0110909]
[1765566495346,0.01109053,90167.0,90162.0,0.02315]
[1765566495558,0.01109053,90167.0,90162.0,0.066338]
[1765566495975,0.01109053,90167.0,90160.0,0.01764]
[1765566495976,0.0110909,90164.0,90160.0,0.01764]
[1765566496209,0.01109163,90158.0,90148.0,0.00011606]
[1765566496421,0.0110925,90151.0,90148.0,0.00011606]
[1765566496842,0.0110925,90151.0,90148.0,0.02326606]
[1765566497263,0.01109225,90153.0,90150.0,0.01658]
[1765566497649,0.01109225,90153.0,90152.0,0.01658]
[1765566498064,0.22185246,90150.0,90148.0,0.00211606]
[1765566498695,0.22330921,90150.0,90148.0,0.00211606]
[1765566498902,0.00674362,90149.0,90148.0,0.00211606]
[1765566499080,0.00820037,90149.0,90148.0,0.00211606]
[1765566499311,0.00820037,90149.0,90148.0,0.00011606]
[1765566499767,0.00820037,90149.0,90148.0,0.00211606]
[1765566499975,0.00145675,90149.0,90148.0,0.00211606]
[1765566500182,0.04465675,90149.0,90148.0,0.00211606]
[1765566500395,0.00820037,90149.0,90148.0,0.00211606]
[1765566500616,0.01109323,90145.0,90142.0,0.00023929]
[1765566500832,1.55576969,90143.0,90142.0,0.00023929]
[1765566501045,1.57945967,90143.0,90142.0,0.00023929]
[1765566501280,1.31535967,90143.0,90142.0,0.00023929]
[1765566501485,0.57945967,90143.0,90142.0,0.00023929]
[1765566501693,0.55576969,90143.0,90142.0,0.00023929]
[1765566501874,0.51256969,90143.0,90142.0,0.00023929]
[1765566502048,0.51556969,90143.0,90142.0,0.00023929]
[1765566502671,0.51556969,90143.0,90118.0,0.05]
[1765566502672,0.51262878,90119.0,90118.0,0.05]
[1765566502818,1.60584717,90119.0,90118.0,0.05]
[1765566503032,1.60584717,90119.0,90100.0,0.0002]
[1765566503033,0.22194848,90111.0,90100.0,0.0002]
[1765566503243,0.22194848,90111.0,90100.0,0.01129877]
[1765566503449,0.22194848,90111.0,90104.0,0.043188]
[1765566504323,0.22206424,90111.0,90103.0,0.043188]
[1765566504487,0.22206424,90111.0,90103.0,0.0542864]
[1765566505016,0.22306424,90111.0,90103.0,0.0542864]
[1765566505432,0.00011576,90111.0,90110.0,0.01616]
[1765566505710,0.00011576,90111.0,90110.0,0.082988]
[1765566506214,0.00111576,90111.0,90110.0,0.0002]
[1765566506674,0.00011576,90111.0,90110.0,0.0002]
[1765566509921,0.00011576,90111.0,90110.0,0.0398]
[1765566510109,0.00011576,90111.0,90110.0,0.06199509]
[1765566510304,0.00011576,90111.0,90110.0,0.04075754]
[1765566511134,0.00011576,90111.0,90110.0,0.26270848]
[1765566512700,0.00011576,90111.0,90110.0,0.30589648]
[1765566513178,0.00011576,90111.0,90110.0,0.30789648]
[1765566513816,0.00011576,90111.0,90110.0,0.30589648]
[1765566513977,0.00011576,90111.0,90110.0,0.26929648]
[1765566514178,0.00011576,90111.0,90110.0,0.00415754]
[1765566514375,0.00157251,90111.0,90110.0,0.00615754]
[1765566514585,0.00157251,90111.0,90110.0,0.00415754]
[1765566515103,0.00157251,90111.0,90110.0,0.00715754]
[1765566515310,0.00157251,90111.0,90110.0,0.00115754]
[1765566515474,0.00157251,90111.0,90110.0,0.00415754]